bitfinex/quotes_SOLUSD_20250402
["timestamp","ask_amount","ask_price","bid_price","bid_amount"]
[1743613993170,6.5188,131.34,131.27,26.0]
[1743613993671,0.28432314,131.34,131.27,26.0]
[1743613993874,18.67964886,131.35,131.27,26.0]
[1743613994374,60.0629501,131.35,131.28,7.6173]
[1743613994574,0.28432314,131.34,131.29,8.22]
[1743613994770,0.03,131.35,131.29,8.22]
[1743613995069,18.933972,131.33,131.28,8.22]
[1743613995371,0.14216157,131.28,131.24,285.06]
[1743613995750,6.4304,131.31,131.24,285.06]
[1743613995965,6.4779,131.34,131.25,18.79181043]
[1743613996151,7.6433,131.35,131.28,26.0]
[1743613996346,7.6149,131.32,131.29,8.22]
[1743613996765,0.03,131.35,131.29,8.22]
[1743613997050,0.03,131.35,131.29,15.8364]
[1743613998058,0.03,131.35,131.29,34.8782]
[1743613998266,0.03,131.35,131.3,0.14216157]
[1743613998477,0.03,131.35,131.31,7.6155]
[1743613999174,0.03,131.35,131.31,26.6544]
[1743613999579,0.03,131.35,131.31,7.6155]
[1743613999776,0.03,131.35,131.28,7.6173]
[1743613999985,0.03,131.35,131.29,8.2]
[1743614000296,0.28432314,131.33,131.27,1.5764]
[1743614000504,7.6149,131.32,131.27,8.2]
[1743614000991,0.28432314,131.31,131.27,8.2]
[1743614001491,18.933972,131.31,131.27,8.2]
[1743614001667,18.933972,131.31,131.25,8.22]
[1743614001864,0.14216157,131.3,131.25,8.22]
[1743614002068,0.28432314,131.28,131.25,8.22]
[1743614002467,7.6178,131.27,131.24,285.06]
[1743614002988,7.6167,131.29,131.24,285.06]
[1743614003896,19.07613357,131.28,131.24,285.06]
[1743614004194,0.28432314,131.25,131.24,285.06]
[1743614004763,26.552972,131.25,131.24,285.06]
[1743614004963,0.28432314,131.23,131.22,0.063]
[1743614005492,7.619,131.25,131.22,0.063]
[1743614006468,0.28432314,131.24,131.22,0.063]
[1743614006669,7.90402314,131.24,131.22,0.063]
[1743614007476,52.56171167,131.27,131.22,0.063]
[1743614007672,7.618,131.27,131.22,0.063]
[1743614007873,7.6175,131.28,131.22,26.063]
[1743614008202,7.6169,131.29,131.23,8.24]
[1743614008371,18.933972,131.28,131.23,8.24]
[1743614008565,0.28432314,131.26,131.23,8.24]
[1743614008896,0.28432314,131.24,131.22,0.063]
[1743614009305,18.933972,131.24,131.22,0.063]
[1743614009802,0.28432314,131.26,131.22,0.063]
[1743614010004,0.14216157,131.25,131.22,0.063]
[1743614010187,52.84603481,131.23,131.22,0.063]
[1743614010690,8.1516,131.25,131.22,0.063]
[1743614010691,6.525,131.25,131.22,0.063]
[1743614010869,18.79181043,131.24,131.22,0.063]
[1743614011073,0.14216157,131.23,131.22,0.063]
[1743614011293,52.84603481,131.23,131.22,0.063]
[1743614011807,18.64964886,131.19,131.17,6.46]
[1743614011980,0.14216157,131.21,131.17,6.46]
[1743614012175,1.5528,131.27,131.17,14.0834]
[1743614012384,14.1417,131.29,131.21,26.0]
[1743614012589,20.5918,131.31,131.21,26.0]
[1743614012590,9.1684,131.31,131.25,26.0]
[1743614012777,9.1684,131.31,131.19,285.16]
[1743614012778,21.16152738,131.31,131.19,285.16]
[1743614012989,33.76990124,131.27,131.2,8.38]
[1743614013189,40.20042738,131.31,131.2,8.38]
[1743614013425,33.76990124,131.29,131.21,0.14216157]
[1743614013603,40.20042738,131.31,131.23,26.0]
[1743614013810,26.6545,131.31,131.23,26.0]
[1743614014010,34.05422438,131.29,131.23,26.0]
[1743614014298,52.56171167,131.26,131.2,8.38]
[1743614014505,0.14216157,131.25,131.2,8.38]
[1743614015008,7.6187,131.26,131.2,8.38]
[1743614015298,0.28432314,131.25,131.2,8.36]
[1743614016706,7.6196,131.24,131.2,8.36]
[1743614017078,7.6196,131.24,131.21,0.063]
[1743614017481,34.19638595,131.23,131.21,0.063]
[1743614017687,52.84603481,131.22,131.21,0.063]
[1743614018092,33.76990124,131.2,131.17,6.46]
[1743614018299,0.28432314,131.2,131.17,6.46]
[1743614018505,0.28432314,131.19,131.17,6.46]
[1743614018691,0.28432314,131.2,131.17,6.46]
[1743614018894,7.6219,131.2,131.17,6.46]
[1743614019201,7.6207,131.22,131.17,6.46]
[1743614019900,7.6196,131.24,131.17,26.0]
[1743614020217,7.6184,131.26,131.21,26.0]
[1743614020996,52.56171167,131.25,131.13,0.063]
[1743614021198,0.42648471,131.22,131.16,8.973]
[1743614021396,0.28432314,131.19,131.16,8.403]
[1743614021811,26.0,131.22,131.16,0.063]
[1743614021999,0.28432314,131.21,131.16,0.063]
[1743614022315,0.28432314,131.22,131.16,7.6872]
[1743614022482,26.6645,131.26,131.16,0.063]
[1743614022692,52.4195501,131.23,131.17,34.36]
[1743614023015,26.6747,131.21,131.18,8.36]
[1743614023701,42.28069651,131.36,131.18,8.36]
[1743614023702,7.6205,131.23,131.18,8.36]
[1743614023885,7.619,131.25,131.18,8.36]
[1743614025010,26.6666,131.25,131.18,8.36]
[1743614026509,0.28432314,131.24,131.18,8.36]
[1743614027036,7.6202,131.23,131.18,8.36]
[1743614027195,7.6202,131.23,131.18,15.983]
[1743614027397,7.6202,131.23,131.18,7.623]
[1743614027711,41.38830124,131.26,131.19,8.3]
[1743614027910,52.70387324,131.25,131.19,8.3]
[1743614028136,0.28432314,131.23,131.19,8.32]
[1743614028312,18.933972,131.23,131.16,7.6872]
[1743614028505,52.70387324,131.23,131.17,8.34]
[1743614028843,0.14216157,131.23,131.17,8.34]
[1743614029007,7.6202,131.23,131.18,0.063]
[1743614030539,0.14216157,131.27,131.19,6.4923]
[1743614030712,7.6173,131.28,131.22,26.0]
[1743614030917,0.03,131.29,131.23,8.3]
[1743614031145,7.6469,131.29,131.23,15.92]
[1743614031336,34.05422438,131.28,131.23,8.3]
[1743614031629,0.14216157,131.28,131.23,8.3]
[1743614031829,45.33834886,131.29,131.23,15.9201]
[1743614031830,7.6469,131.29,131.23,15.9201]
[1743614032131,7.6469,131.29,131.23,8.3]
[1743614032329,7.6469,131.29,131.23,15.92]
[1743614032636,7.6469,131.29,131.23,8.3]
[1743614033020,7.6469,131.29,131.22,7.6205]
[1743614033221,18.933972,131.28,131.23,34.3]
[1743614033514,0.28432314,131.28,131.23,34.3]
[1743614033927,7.6469,131.29,131.23,34.3]
[1743614034312,34.05422438,131.28,131.23,8.3]
[1743614034841,0.28432314,131.23,131.19,8.34]
[1743614035138,7.6207,131.22,131.18,8.403]
[1743614036215,26.6726,131.22,131.18,8.403]
[1743614036531,7.6207,131.22,131.18,8.403]
[1743614036906,7.6207,131.22,131.18,0.063]
[1743614037108,0.28432314,131.19,131.18,0.063]
[1743614037310,7.6219,131.2,131.18,0.063]
[1743614037513,38.12533357,131.24,131.18,0.063]
[1743614037714,0.28432314,131.21,131.18,0.063]
[1743614038134,18.933972,131.21,131.18,0.063]
[1743614038318,18.64964886,131.19,131.18,0.063]
[1743614038815,0.14216157,131.23,131.18,0.063]
[1743614039020,19.0492,131.24,131.18,0.063]
[1743614039330,60.0385501,131.25,131.18,0.063]
[1743614039331,18.64964886,131.23,131.18,0.063]
[1743614039521,0.14216157,131.22,131.18,0.063]
[1743614039731,18.933972,131.22,131.18,0.063]
[1743614039936,0.28432314,131.24,131.18,0.063]
[1743614040126,18.933972,131.24,131.18,0.063]
[1743614040321,18.64964886,131.24,131.18,0.063]
[1743614040526,0.14216157,131.23,131.18,0.063]
[1743614040758,0.28432314,131.23,131.18,0.063]
[1743614040931,18.933972,131.21,131.18,0.063]
[1743614041272,0.14216157,131.24,131.18,0.063]
[1743614041556,0.03,131.25,131.21,26.0]
[1743614041729,0.03,131.25,131.22,8.42]
[1743614042327,0.03,131.25,131.24,26.0]
[1743614042849,0.03,131.25,131.24,34.1854]
[1743614043235,0.03,131.25,131.24,41.805]
[1743614043467,0.03,131.25,131.24,41.94716157]
[1743614043658,0.03,131.25,131.24,60.59681043]
[1743614044132,0.03,131.29,131.25,0.14216157]
[1743614044544,0.03,131.29,131.25,19.07613357]
[1743614045159,0.03,131.29,131.28,33.6173]
[1743614045446,0.03,131.29,131.28,8.38]
[1743614045655,0.03,131.29,131.28,34.52216157]
[1743614045839,0.0001,131.29,131.28,34.52216157]
[1743614046558,0.0001,131.29,131.28,27.45613357]
[1743614046929,0.03,131.35,131.31,26.0]
[1743614047130,0.03,131.35,131.33,7.6144]
[1743614047433,0.03,131.35,131.34,8.38]
[1743614047836,0.03,131.35,131.33,8.36]
[1743614048147,0.45648471,131.35,131.24,8.1854]
[1743614048360,50.68012823,131.35,131.26,0.14216157]
[1743614048562,0.31432314,131.35,131.28,26.0]
[1743614048744,0.31432314,131.35,131.29,8.34]
[1743614049457,0.03,131.35,131.32,26.0]
[1743614050336,7.6433,131.35,131.29,8.34]
[1743614050536,0.03,131.35,131.29,15.9566]
[1743614051254,0.03,131.35,131.24,8.1854]
[1743614051255,18.933972,131.34,131.24,8.1854]
[1743614051431,18.933972,131.34,131.24,8.34]
[1743614051432,7.6161,131.3,131.24,8.34]
[1743614051633,0.03,131.35,131.27,26.0]
[1743614051856,0.03,131.35,131.31,26.0]
[1743614052069,0.03,131.35,131.32,34.50216157]
[1743614052268,0.03,131.35,131.34,26.0]
[1743614052439,0.03,131.35,131.32,8.36]
[1743614052641,0.28432314,131.34,131.28,8.36]
[1743614052949,0.28432314,131.34,131.29,0.89]
[1743614053150,50.93445137,131.34,131.29,0.89]
[1743614053461,7.6144,131.33,131.29,0.89]
[1743614054056,7.6144,131.33,131.28,8.36]
[1743614055181,0.28432314,131.32,131.28,8.36]
[1743614055379,69.58410023,131.32,131.28,8.36]
[1743614055678,18.933972,131.3,131.23,293.36]
[1743614055890,18.933972,131.3,131.25,0.89]
[1743614056048,0.28432314,131.3,131.23,293.36]
[1743614056374,26.6544,131.31,131.23,293.36]
[1743614056547,0.28432314,131.3,131.23,293.36]
[1743614056743,18.933972,131.3,131.23,293.36]
[1743614057052,69.58410023,131.3,131.23,293.36]
[1743614057254,18.933972,131.3,131.23,293.36]
[1743614057563,0.28432314,131.28,131.23,293.36]
[1743614057753,0.28432314,131.26,131.18,6.1641]
[1743614057947,0.28432314,131.26,131.19,0.89]
[1743614058385,0.14216157,131.26,131.19,0.89]
[1743614058555,0.28432314,131.28,131.21,26.0]
[1743614059570,7.6178,131.27,131.21,26.0]
[1743614060678,7.6178,131.27,131.21,33.6212]
[1743614060968,7.6178,131.27,131.22,8.28]
[1743614062042,6.4775,131.31,131.22,8.28]
[1743614062261,6.4775,131.31,131.25,26.0]
[1743614062657,14.0932,131.31,131.22,15.9005]
[1743614062850,69.58410023,131.3,131.22,8.28]
[1743614063571,0.28432314,131.27,131.21,8.26]
[1743614063755,7.6184,131.26,131.18,13.7868]
[1743614063953,7.6184,131.26,131.2,8.26]
[1743614064150,0.28432314,131.25,131.2,8.26]
[1743614064677,26.6645,131.26,131.2,8.26]
[1743614064880,7.6173,131.28,131.2,8.26]
[1743614065378,7.6173,131.28,131.21,0.063]
[1743614065691,7.619,131.25,131.21,0.063]
[1743614066574,0.28432314,131.24,131.21,0.063]
[1743614067982,7.90422314,131.24,131.21,0.063]
[1743614068486,18.79181043,131.29,131.21,0.063]
[1743614068664,33.80574589,131.28,131.21,0.063]
[1743614068985,18.933972,131.27,131.21,0.063]
[1743614069191,9.2412,131.3,131.22,26.0]
[1743614069480,18.64964886,131.29,131.22,26.0]
[1743614069655,0.14216157,131.28,131.22,26.0]
[1743614069877,0.28432314,131.28,131.22,26.0]
[1743614070496,0.14216157,131.28,131.23,7.6202]
[1743614070795,18.79181043,131.29,131.23,7.6202]
[1743614071101,18.79181043,131.29,131.22,33.6205]
[1743614071276,0.14216157,131.28,131.22,33.6205]
[1743614071479,6.4775,131.31,131.23,0.14216157]
[1743614071678,1.6251,131.33,131.23,0.14216157]
[1743614071679,1.6251,131.33,131.23,18.79181043]
[1743614071872,1.6251,131.33,131.22,52.6724]
[1743614071873,18.79181043,131.32,131.22,52.6724]
[1743614072082,0.14216157,131.31,131.23,8.22]
[1743614072281,0.28432314,131.29,131.23,8.22]
[1743614072498,18.79181043,131.31,131.24,7.6196]
[1743614072807,1.6251,131.33,131.24,26.6686]
[1743614072983,1.6251,131.33,131.25,0.14216157]
[1743614073694,0.28432314,131.33,131.27,26.0]
[1743614074088,52.88187946,131.33,131.24,311.8286]
[1743614074597,0.28432314,131.31,131.24,292.7796]
[1743614074785,52.45539475,131.33,131.27,26.0]
[1743614074992,6.2117,131.34,131.27,26.0]
[1743614075379,0.03,131.35,131.28,0.14216157]
[1743614075601,7.6432,131.35,131.27,26.0]
[1743614075803,0.03,131.35,131.29,8.2]
[1743614076606,0.03,131.35,131.3,7.6161]
[1743614077302,18.64964886,131.33,131.24,304.2076]
[1743614077506,0.28432314,131.32,131.25,8.18]
[1743614078202,0.03,131.35,131.26,0.14216157]
[1743614078400,0.03,131.35,131.29,26.0]
[1743614078588,0.03,131.35,131.3,7.6161]
[1743614078788,0.03,131.35,131.31,8.2]
[1743614080705,0.03,131.35,131.32,7.6149]
[1743614081288,0.03,131.35,131.31,7.6154]
[1743614081486,0.03,131.35,131.32,8.18]
[1743614081896,0.03,131.35,131.34,26.0]
[1743614082092,0.03,131.35,131.34,26.14216157]
[1743614082783,0.03,131.35,131.34,33.75596157]
[1743614083705,0.03,131.37,131.35,0.14216157]
[1743614083910,0.03,131.37,131.35,285.18216157]
[1743614084293,0.03,131.37,131.36,18.64964886]
[1743614084697,0.03,131.37,131.36,26.26224886]
[1743614085100,0.03,131.37,131.36,7.6126]
[1743614085288,0.03,131.37,131.35,300.813]
[1743614087814,0.03,131.37,131.35,293.2]
[1743614088184,0.03,131.37,131.35,285.04]
[1743614088387,0.03,131.37,131.35,293.16]
[1743614088592,0.03,131.37,131.35,285.04]
[1743614088891,44.963972,131.37,131.29,6.618]
[1743614089099,20.581572,131.37,131.3,8.12]
[1743614089419,1.93192314,131.37,131.3,8.12]
[1743614089712,7.6126,131.36,131.3,8.12]
[1743614089897,18.933972,131.35,131.28,8.12]
[1743614090104,52.73971789,131.35,131.28,8.12]
[1743614090308,18.933972,131.35,131.28,8.12]
[1743614091313,18.933972,131.35,131.27,284.94]
[1743614091314,0.28432314,131.33,131.27,284.94]
[1743614091614,0.28432314,131.31,131.27,284.94]
[1743614091909,0.28432314,131.35,131.27,292.5577]
[1743614092096,0.03,131.37,131.31,26.14216157]
[1743614092290,0.03,131.37,131.32,8.12]
[1743614092491,0.03,131.37,131.35,26.0]
[1743614092913,0.03,131.37,131.3,18.64964886]
[1743614093210,0.03,131.37,131.34,26.0]
[1743614093616,0.03,131.37,131.31,8.26216157]
[1743614093804,0.03,131.37,131.32,7.6149]
[1743614097108,0.03,131.37,131.33,7.75606157]
[1743614098216,0.03,131.37,131.36,26.0]
[1743614099328,0.03,131.37,131.36,33.75476157]
[1743614100212,0.03,131.37,131.36,52.40441043]
[1743614100419,0.03,131.39,131.38,1.6404]
[1743614100616,0.03,131.39,131.38,9.6804]
[1743614101012,0.03,131.39,131.38,8.04]
[1743614101207,0.03,131.39,131.38,21.8620659]
[1743614101408,0.03,131.39,131.38,22.00422747]
[1743614101603,0.03,131.39,131.38,15.79366157]
[1743614101803,0.03,131.39,131.38,8.04]
[1743614102127,0.03,131.39,131.38,15.79366157]
[1743614102421,0.03,131.39,131.38,34.44331043]
[1743614102807,0.03,131.43,131.41,26.0]
[1743614103023,0.03,131.43,131.38,8.04]
[1743614103227,7.6386,131.43,131.38,8.04]
[1743614104008,0.28432314,131.42,131.38,8.04]
[1743614104205,0.03,131.43,131.41,26.0]
[1743614104508,0.03,131.43,131.38,15.6509]
[1743614104702,0.17216157,131.43,131.35,0.063]
[1743614104904,6.6691,131.43,131.36,8.04]
[1743614105100,0.14216157,131.42,131.36,8.04]
[1743614105303,7.6097,131.41,131.36,8.04]
[1743614107414,26.633,131.42,131.36,8.04]
[1743614108536,7.6091,131.42,131.36,8.04]
[1743614109936,7.6091,131.42,131.36,15.6522]
[1743614110837,0.28432314,131.41,131.36,7.98]
[1743614111009,1.88712314,131.41,131.35,0.063]
[1743614111215,0.28432314,131.39,131.35,0.063]
[1743614111430,7.6115,131.38,131.35,0.063]
[1743614112012,7.6115,131.38,131.35,8.043]
[1743614112708,7.89462314,131.4,131.35,8.043]
[1743614112915,26.92042314,131.4,131.35,0.063]
[1743614113131,26.92042314,131.4,131.35,8.023]
[1743614113644,0.28432314,131.38,131.35,0.063]
[1743614114637,60.44184589,131.4,131.35,0.063]
[1743614114838,0.14216157,131.39,131.35,0.063]
[1743614115048,0.28432314,131.39,131.35,0.063]
[1743614115535,7.6115,131.38,131.35,0.063]
[1743614116320,26.6402,131.38,131.35,0.063]
[1743614116527,0.28432314,131.37,131.35,0.063]
[1743614116922,7.6115,131.38,131.35,0.063]
[1743614117631,26.92252314,131.39,131.35,0.063]
[1743614118231,7.6109,131.39,131.35,0.063]
[1743614118435,7.6106,131.4,131.35,26.063]
[1743614119832,0.28432314,131.39,131.35,26.063]
[1743614120140,26.6364,131.4,131.35,0.063]
[1743614120342,26.6364,131.4,131.35,26.063]
[1743614120738,7.6106,131.4,131.35,33.6762]
[1743614121242,7.6106,131.4,131.35,26.063]
[1743614121547,0.28432314,131.39,131.35,26.063]
[1743614121749,26.6402,131.38,131.35,0.063]
[1743614122749,7.6115,131.38,131.35,0.063]
[1743614123734,7.6103,131.4,131.35,0.063]
[1743614124061,26.6361,131.4,131.35,0.063]
[1743614124445,7.6103,131.4,131.36,26.0]
[1743614125042,0.28432314,131.39,131.35,0.063]
[1743614126053,26.6402,131.38,131.35,0.063]
[1743614127638,52.73971789,131.37,131.35,0.063]
[1743614128054,7.6126,131.36,131.35,0.063]
[1743614128576,26.546572,131.36,131.35,0.063]
[1743614128955,7.6126,131.36,131.35,0.063]
[1743614129870,7.6115,131.38,131.35,0.063]
[1743614130063,26.6361,131.4,131.35,0.063]
[1743614130266,0.28432314,131.39,131.35,0.063]
[1743614132282,37.67294886,131.42,131.35,0.063]
[1743614132482,0.14216157,131.41,131.36,7.8]
[1743614132963,26.77626157,131.41,131.36,7.8]
[1743614133169,0.14216157,131.39,131.36,7.8]
[1743614134195,7.6115,131.38,131.36,7.8]
[1743614135286,0.28432314,131.37,131.36,7.8]
[1743614135486,0.28432314,131.37,131.35,0.063]
[1743614135694,18.933972,131.37,131.35,0.063]
[1743614136282,26.546572,131.36,131.35,0.063]
[1743614136568,0.42648471,131.35,131.31,284.88]
[1743614136977,7.6126,131.36,131.31,284.88]
[1743614137488,0.28432314,131.35,131.31,284.88]
[1743614137788,0.28432314,131.37,131.31,292.4953]
[1743614138474,7.89652314,131.37,131.31,292.4953]
[1743614138674,0.28432314,131.37,131.31,292.4953]
[1743614138990,7.611,131.39,131.34,26.0]
[1743614139381,7.611,131.39,131.35,7.8]
[1743614139569,7.75276157,131.4,131.35,7.8]
[1743614139901,7.6106,131.4,131.35,7.8]
[1743614140202,7.6387,131.43,131.38,26.0]
[1743614140498,0.03,131.43,131.38,33.6114]
[1743614140973,0.03,131.43,131.38,26.0]
[1743614141298,0.03,131.43,131.38,33.6114]
[1743614141589,0.03,131.43,131.38,26.0]
[1743614142474,7.6386,131.43,131.38,33.6115]
[1743614142680,7.6386,131.43,131.38,26.0]
[1743614143478,26.6601,131.43,131.38,26.0]
[1743614143874,7.6386,131.43,131.36,7.6124]
[1743614144171,7.6386,131.43,131.38,26.0]
[1743614144376,0.03,131.43,131.4,7.6103]
[1743614144576,0.03,131.43,131.41,7.78]
[1743614146305,0.03,131.43,131.42,7.6091]
[1743614146685,0.03,131.43,131.41,15.3896]
[1743614147708,0.03,131.43,131.42,0.14216157]
[1743614148211,0.03,131.43,131.41,15.3896]
[1743614148513,0.03,131.43,131.42,0.14216157]
[1743614148911,0.03,131.43,131.41,292.6]
[1743614149688,0.03,131.43,131.41,284.82]
[1743614149905,0.03,131.43,131.42,7.78]
[1743614151081,0.03,131.43,131.41,292.6]
[1743614152711,0.03,131.43,131.41,284.82]
[1743614153521,0.03,131.43,131.4,7.78]
[1743614155022,0.03,131.43,131.38,6.4989]
[1743614155222,0.03,131.43,131.4,7.78]
[1743614155895,0.03,131.43,131.42,26.0]
[1743614160815,0.03,131.43,131.42,33.6091]
[1743614161119,0.03,131.43,131.42,26.0]
[1743614162316,0.03,131.43,131.42,33.75126157]
[1743614162708,0.03,131.43,131.39,18.64964886]
[1743614163020,0.03,131.43,131.38,7.78]
[1743614163521,0.03,131.43,131.4,7.6103]
[1743614164404,0.03,131.43,131.39,0.14216157]
[1743614164609,0.03,131.43,131.39,7.75276157]
[1743614168226,0.03,131.43,131.39,7.6106]
[1743614170808,0.03,131.43,131.38,15.3913]
[1743614172227,0.03,131.43,131.39,18.79181043]
[1743614172810,0.03,131.43,131.4,7.6103]
[1743614174007,0.03,131.43,131.42,26.0]
[1743614174897,0.03,131.43,131.39,7.6106]
[1743614176923,0.03,131.43,131.42,26.14216157]
[1743614177132,0.03,131.43,131.42,26.0]
[1743614177304,0.03,131.43,131.42,26.14216157]
[1743614177824,0.03,131.43,131.42,26.0]
[1743614178830,0.03,131.43,131.42,33.6091]
[1743614189436,0.03,131.43,131.42,41.3891]
[1743614191338,0.03,131.43,131.42,15.3891]
[1743614191526,0.03,131.43,131.42,41.3891]
[1743614191928,0.03,131.43,131.42,33.78]
[1743614192338,0.03,131.43,131.42,41.3891]
[1743614193117,0.03,131.43,131.42,15.53126157]
[1743614193741,0.03,131.45,131.42,15.53126157]
[1743614193742,0.03,131.45,131.44,26.0]
[1743614194918,0.03,131.45,131.36,41.77059418]
[1743614195114,13.47829483,131.4,131.35,0.063]
[1743614195316,13.47829483,131.36,131.35,0.063]
[1743614195520,26.04526386,131.36,131.35,0.063]
[1743614196040,0.28432314,131.35,131.34,11.82893012]
[1743614196230,32.41226683,131.35,131.34,3.012e-05]
[1743614196542,0.14216157,131.34,131.33,9.037e-05]
[1743614196742,40.1682284,131.34,131.33,9.037e-05]
[1743614197138,12.14048432,131.36,131.33,9.037e-05]
[1743614197315,18.933972,131.35,131.33,9.037e-05]
[1743614197515,32.5544284,131.35,131.33,9.037e-05]
[1743614197720,40.04102701,131.35,131.33,9.037e-05]
[1743614197919,51.92262324,131.35,131.31,0.063]
[1743614198142,7.7951,131.32,131.31,0.063]
[1743614198441,26.87123357,131.32,131.31,0.063]
[1743614198635,55.59318858,131.32,131.31,0.063]
[1743614198843,55.59318858,131.32,131.23,284.7]
[1743614198844,0.14216157,131.27,131.23,284.7]
[1743614199026,21.10705501,131.25,131.21,0.063]
[1743614199342,21.39137815,131.24,131.21,0.063]
[1743614199647,0.28432314,131.24,131.21,0.063]
[1743614199838,18.933972,131.24,131.21,0.063]
[1743614200421,15.75026495,131.23,131.21,0.063]
[1743614200617,15.75026495,131.23,131.15,258.67375782]
[1743614200618,18.933972,131.22,131.15,258.67375782]
[1743614200917,0.28432314,131.22,131.15,258.67375782]
[1743614201118,15.75026495,131.22,131.16,0.28432314]
[1743614201547,11.84537238,131.2,131.16,0.28432314]
[1743614201845,23.69074476,131.22,131.16,19.433972]
[1743614202424,10.51437019,131.25,131.18,18.933972]
[1743614202624,10.51437019,131.25,131.22,7.6207]
[1743614203041,26.26574886,131.31,131.2,26.27104886]
[1743614203343,18.933972,131.3,131.23,26.0]
[1743614204446,0.28432314,131.3,131.23,26.0]
[1743614204645,0.14216157,131.31,131.25,7.619]
[1743614204947,0.28432314,131.31,131.25,7.619]
[1743614205134,19.07613357,131.31,131.22,26.0]
[1743614205336,19.07613357,131.31,131.23,26.0]
[1743614205549,0.28432314,131.31,131.23,26.0]
[1743614206457,19.07613357,131.31,131.23,26.0]
[1743614206762,26.69173357,131.31,131.23,33.6196]
[1743614206959,6.2762,131.32,131.24,0.14216157]
[1743614207246,0.14216157,131.35,131.28,26.0]
[1743614207443,6.359,131.36,131.28,26.0]
[1743614207831,1.5009,131.37,131.29,26.0]
[1743614208342,0.14216157,131.38,131.29,26.0]
[1743614208543,0.14216157,131.39,131.3,26.0]
[1743614208750,0.14216157,131.39,131.32,7.6149]
[1743614209048,19.07613357,131.39,131.32,7.6149]
[1743614209344,6.4497,131.4,131.35,26.0]
[1743614210556,6.4497,131.4,131.35,33.6129]
[1743614210760,12.20348432,131.43,131.35,33.6129]
[1743614210953,0.063,131.43,131.35,33.6129]
[1743614211153,0.34732314,131.43,131.35,33.6129]
[1743614211856,7.95602314,131.43,131.35,33.6129]
[1743614212030,7.95602314,131.43,131.31,64.53574886]
[1743614212031,0.28432314,131.41,131.34,33.6136]
[1743614212846,7.89412314,131.41,131.34,33.6136]
[1743614213553,7.89412314,131.41,131.35,26.0]
[1743614213734,26.91852314,131.41,131.33,7.78]
[1743614214552,7.89412314,131.41,131.33,7.78]
[1743614214733,7.89412314,131.41,131.34,26.0]
[1743614214934,7.89412314,131.41,131.33,7.78]
[1743614215936,7.89412314,131.41,131.33,15.3942]
[1743614216841,7.89412314,131.41,131.33,7.78]
[1743614217047,0.42648471,131.39,131.31,26.03]
[1743614217954,0.28432314,131.37,131.31,41.4253]
[1743614219039,7.6126,131.36,131.31,41.4253]
[1743614219349,7.6126,131.36,131.31,33.81]
[1743614219749,0.42648471,131.35,131.31,0.03]
[1743614220061,19.07613357,131.35,131.31,0.03]
[1743614220260,18.933972,131.35,131.31,0.03]
[1743614220561,14.0948,131.36,131.31,7.6454]
[1743614220764,7.6121,131.37,131.32,26.0]
[1743614221579,7.6121,131.37,131.31,7.6454]